fUSD/lending_fUSD_20250629
["ID","MTS","AMOUNT","RATE_DAILY","PERIOD"]
[368551013,1751203860868,-490.0,0.00024931,3]
[368551014,1751203860879,-1096.5,0.00024931,3]
[368551015,1751203860888,-490.0,0.00024931,3]
[368551016,1751203860900,-490.0,0.00024931,3]
[368551017,1751203860910,-1124.45,0.00024931,3]
[368551018,1751203860920,-1907.06,0.00024931,3]
[368551019,1751203860929,-559.17,0.00024931,3]
[368551020,1751203860939,-490.0,0.00024931,3]
[368551021,1751203860949,-490.0,0.00024931,3]
[368551022,1751203860958,-490.0,0.00024931,3]
[368551023,1751203860968,-490.0,0.00024931,3]
[368551024,1751203860978,-495.62,0.00024931,3]
[368551025,1751203860988,-766.98,0.00024931,3]
[368551026,1751203860998,-490.0,0.00024931,3]
[368551027,1751203861008,-151.0,0.00024931,7]
[368551028,1751203861018,-151.0,0.00024931,7]
[368551029,1751203861028,-151.0,0.00024931,7]
[368551030,1751203861037,-490.0,0.00024931,3]
[368551031,1751203861047,-490.0,0.00024931,3]
[368551032,1751203861056,-490.0,0.00024931,3]
[368551033,1751203861066,-151.0,0.00024931,7]
[368551034,1751203861076,-151.0,0.00024931,7]
[368551035,1751203861086,-490.0,0.00024931,3]
[368551036,1751203861096,-151.0,0.00024931,7]
[368551037,1751203861107,-490.0,0.00024931,3]
[368551038,1751203861116,-490.0,0.00024931,3]
[368551039,1751203861126,-490.0,0.00024931,3]
[368551040,1751203861135,-490.0,0.00024931,3]
[368551041,1751203861145,-490.0,0.00024931,3]
[368551042,1751203861154,-548.88,0.00024931,3]
[368551043,1751203861164,-799.31,0.00024931,3]
[368551044,1751203861173,-490.0,0.00024931,3]
[368551045,1751203861183,-490.0,0.00024931,3]
[368551046,1751203861192,-490.0,0.00024931,3]
[368551047,1751203861202,-812.87,0.00024931,3]
[368551048,1751203861211,-490.0,0.00024931,3]
[368551049,1751203861221,-1801.03,0.00024931,3]
[368551050,1751203861230,-490.0,0.00024931,3]
[368551051,1751203861240,-1087.09,0.00024931,3]
[368551052,1751203861250,-191.38028117,0.00024931,3]
[368551053,1751203861260,-490.0,0.00024931,3]
[368551054,1751203861270,-490.0,0.00024931,3]
[368551055,1751203861281,-490.0,0.00024931,3]
[368551056,1751203861290,-580.95,0.00024931,3]
[368551057,1751203861300,-490.0,0.00024931,3]
[368551058,1751203861310,-602.35,0.00024931,3]
[368551059,1751203861320,-490.0,0.00024931,3]
[368551060,1751203861331,-490.0,0.00024931,3]
[368551061,1751203861341,-490.0,0.00024931,3]
[368551062,1751203861353,-490.0,0.00024931,3]
[368551063,1751203861365,-702.53,0.00024931,3]
[368551064,1751203861374,-707.52,0.00024931,3]
[368551065,1751203861384,-490.0,0.00024931,3]
[368551066,1751203861394,-490.0,0.00024931,3]
[368551067,1751203861404,-490.0,0.00024931,3]
[368551068,1751203861413,-645.41,0.00024931,3]
[368551069,1751203861422,-490.0,0.00024931,3]
[368551070,1751203861434,-490.0,0.00024931,3]
[368551071,1751203861443,-1329.62,0.00024931,3]
[368551072,1751203861453,-490.0,0.00024931,3]
[368551073,1751203861462,-490.0,0.00024931,3]
[368551074,1751203861472,-150.485152,0.00024931,3]
[368551075,1751203861481,-490.0,0.00024931,3]
[368551076,1751203861495,-490.0,0.00024931,3]
[368551077,1751203861504,-490.0,0.00024931,3]
[368551078,1751203861514,-490.0,0.00024931,3]
[368551079,1751203861523,-490.0,0.00024931,3]
[368551080,1751203861534,-490.0,0.00024931,3]
[368551081,1751203861544,-490.0,0.00024931,3]
[368551082,1751203861555,-490.0,0.00024931,3]
[368551083,1751203861565,-490.0,0.00024931,3]
[368551084,1751203861574,-534.01,0.00024931,3]
[368551085,1751203861583,-490.0,0.00024931,3]
[368551086,1751203861593,-941.48,0.00024931,3]
[368551087,1751203861603,-490.0,0.00024931,3]
[368551088,1751203861613,-490.0,0.00024931,3]
[368551089,1751203861624,-490.0,0.00024931,3]
[368551090,1751203861634,-490.0,0.00024931,3]
[368551091,1751203861644,-490.0,0.00024931,3]
[368551092,1751203861655,-490.0,0.00024931,3]
[368551093,1751203861665,-490.0,0.00024931,3]
[368551094,1751203861675,-490.0,0.00024931,3]
[368551095,1751203861685,-490.0,0.00024931,3]
[368551096,1751203861694,-604.63930528,0.00024931,3]
[368551097,1751203861704,-490.0,0.00024931,3]
[368551098,1751203861713,-490.0,0.00024931,3]
[368551099,1751203861723,-490.0,0.00024931,3]
[368551100,1751203861734,-490.0,0.00024931,3]
[368551101,1751203861744,-490.0,0.00024931,3]
[368551102,1751203861754,-490.0,0.00024931,3]
[368551103,1751203861764,-167.41,0.00024931,3]
[368551104,1751203861774,-490.0,0.00024931,3]
[368551105,1751203861784,-601.72,0.00024931,3]
[368551106,1751203861793,-151.0,0.00024931,7]
[368551107,1751203861804,-151.0,0.00024931,7]
[368551108,1751203861814,-490.0,0.00024931,3]
[368551109,1751203861823,-151.0,0.00024931,7]
[368551110,1751203861833,-505.28,0.00024931,3]
[368551111,1751203861842,-433.36114574,0.00024931,3]
[368551112,1751203861852,-490.0,0.00024931,3]
[368551113,1751203861862,-490.0,0.00024931,3]
[368551114,1751203861871,-490.0,0.00024931,3]
[368551115,1751203861880,-491.62923657,0.00024931,3]
[368551116,1751203861890,-490.0,0.00024931,3]
[368551117,1751203861900,-1012.68,0.00024931,3]
[368551118,1751203861909,-490.0,0.00024931,3]
[368551119,1751203861919,-490.0,0.00024931,3]
[368551120,1751203861929,-490.0,0.00024931,3]
[368551121,1751203861939,-490.0,0.00024931,3]
[368551122,1751203861948,-507.95833311,0.00024931,3]
[368551123,1751203861958,-547.95,0.00024931,3]
[368551124,1751203861968,-490.0,0.00024931,3]
[368551125,1751203861978,-1196.01,0.00024931,3]
[368551126,1751203861988,-490.0,0.00024931,3]
[368551127,1751203861998,-1069.43,0.00024931,3]
[368551128,1751203862008,-490.0,0.00024931,3]
[368551129,1751203862018,-490.0,0.00024931,3]
[368551130,1751203862028,-490.0,0.00024931,3]
[368551131,1751203862037,-220.94182028,0.00024931,3]
[368551132,1751203862047,-490.0,0.00024931,3]
[368551133,1751203862056,-490.0,0.00024931,3]
[368551134,1751203862066,-811.43,0.00024931,3]
[368551135,1751203862076,-621.12,0.00024931,3]
[368551136,1751203862086,-151.29791538,0.00024931,3]
[368551137,1751203862096,-492.2905996,0.00024931,3]
[368551138,1751203862106,-314.770118,0.00024931,7]
[368551139,1751203862116,-314.770118,0.00024931,7]
[368551140,1751203862126,-610.33,0.00024931,3]
[368551141,1751203862136,-314.770118,0.00024931,7]
[368551142,1751203862146,-490.0,0.00024931,3]
[368551143,1751203862156,-774.07,0.00024931,3]
[368551144,1751203862167,-1088.95,0.00024931,3]
[368551145,1751203862177,-314.770118,0.00024931,7]
[368551146,1751203862187,-314.770118,0.00024931,7]
[368551147,1751203862196,-314.770118,0.00024931,7]
[368551148,1751203862208,-490.0,0.00024931,3]
[368551149,1751203862218,-490.0,0.00024931,3]
[368551150,1751203862230,-490.0,0.00024931,3]
[368551151,1751203862240,-490.0,0.00024931,3]
[368551152,1751203862250,-1650.76,0.00024931,3]
[368551153,1751203862260,-598.97,0.00024931,3]
[368551154,1751203862270,-403.74063058,0.00024931,3]
[368551155,1751203862280,-500.0,0.00024931,3]
[368551156,1751203862290,-490.0,0.00024931,3]
[368551157,1751203862300,-490.0,0.00024931,3]
[368551158,1751203862310,-490.0,0.00024931,3]
[368551159,1751203862319,-490.0,0.00024931,3]
[368551160,1751203862329,-490.0,0.00024931,3]
[368551161,1751203862338,-490.0,0.00024931,3]
[368551162,1751203862348,-559.94,0.00024931,3]
[368551163,1751203862358,-490.0,0.00024931,3]
[368551164,1751203862368,-1474.25,0.00024931,3]
[368551165,1751203862377,-490.0,0.00024931,3]
[368551166,1751203862386,-490.0,0.00024931,3]
[368551167,1751203862396,-490.0,0.00024931,3]
[368551168,1751203862405,-1092.4,0.00024931,3]
[368551169,1751203862416,-490.0,0.00024931,3]
[368551170,1751203862427,-490.0,0.00024931,3]
[368551171,1751203862437,-490.0,0.00024931,3]
[368551172,1751203862448,-490.0,0.00024931,3]
[368551173,1751203862458,-490.0,0.00024931,3]
[368551174,1751203862467,-490.0,0.00024931,3]
[368551175,1751203862477,-490.0,0.00024931,3]
[368551176,1751203862489,-490.0,0.00024931,3]
[368551177,1751203862499,-490.0,0.00024931,3]
[368551178,1751203862509,-490.0,0.00024931,3]
[368551179,1751203862518,-556.58,0.00024931,3]
[368551180,1751203862528,-490.0,0.00024931,3]
[368551181,1751203862538,-490.0,0.00024931,3]
[368551182,1751203862548,-1288.47,0.00024931,3]
[368551183,1751203862559,-490.0,0.00024931,3]
[368551184,1751203862568,-490.0,0.00024931,3]
[368551185,1751203862578,-490.0,0.00024931,3]
[368551186,1751203862587,-490.0,0.00024931,3]
[368551187,1751203862597,-490.0,0.00024931,3]
[368551188,1751203862608,-666.31,0.00024931,3]
[368551189,1751203862617,-1989.75,0.00024931,3]
[368551190,1751203862627,-490.0,0.00024931,3]
[368551191,1751203862637,-1075.83,0.00024931,3]
[368551192,1751203862648,-490.0,0.00024931,3]
[368551193,1751203862657,-1006.64,0.00024931,3]
[368551194,1751203862667,-490.0,0.00024931,3]
[368551195,1751203862678,-490.0,0.00024931,3]
[368551196,1751203862905,-957.5,0.00024931,3]
[368551197,1751203862916,-490.0,0.00024931,3]
[368551198,1751203862925,-622.36,0.00024931,3]
[368551199,1751203862935,-503.54,0.00024931,3]
[368551200,1751203862944,-490.0,0.00024931,3]
[368551201,1751203862954,-490.0,0.00024931,3]
[368551202,1751203862963,-490.0,0.00024931,3]
[368551203,1751203862973,-1779.03,0.00024931,3]
[368551204,1751203862983,-490.0,0.00024931,3]
[368551205,1751203862992,-490.0,0.00024931,3]
[368551206,1751203863002,-490.0,0.00024931,3]
[368551207,1751203863012,-490.0,0.00024931,3]
[368551208,1751203863022,-893.15,0.00024931,3]
[368551209,1751203863031,-490.0,0.00024931,3]
[368551210,1751203863042,-544.12259491,0.00024931,3]
[368551211,1751203863052,-490.0,0.00024931,3]
[368551212,1751203863062,-490.0,0.00024931,3]
[368551213,1751203863072,-490.0,0.00024931,3]
[368551214,1751203863083,-490.0,0.00024931,3]
[368551215,1751203863092,-968.67,0.00024931,3]
[368551216,1751203863102,-1536.82,0.00024931,3]
[368551217,1751203863113,-869.71,0.00024931,3]
[368551218,1751203863123,-490.0,0.00024931,3]
[368551219,1751203863132,-580.17,0.00024931,3]
[368551220,1751203863142,-490.0,0.00024931,3]
[368551221,1751203863152,-490.0,0.00024931,3]
[368551222,1751203863162,-490.0,0.00024931,3]
[368551223,1751203863172,-490.0,0.00024931,3]
[368551224,1751203863182,-490.0,0.00024931,3]
[368551225,1751203863191,-865.64,0.00024931,3]
[368551226,1751203863201,-2976.16,0.00024931,3]
[368551227,1751203863211,-490.0,0.00024931,3]
[368551228,1751203863221,-490.0,0.00024931,3]
[368551229,1751203863231,-490.0,0.00024931,3]
[368551230,1751203863242,-490.0,0.00024931,3]
[368551231,1751203863251,-490.0,0.00024931,3]
[368551232,1751203863261,-490.0,0.00024931,3]
[368551233,1751203863271,-1071.04,0.00024931,3]
[368551234,1751203863281,-151.0,0.00024931,7]
[368551235,1751203863290,-151.0,0.00024931,7]
[368551236,1751203863300,-151.0,0.00024931,7]
[368551237,1751203863309,-490.0,0.00024931,3]
[368551238,1751203863318,-490.0,0.00024931,3]
[368551239,1751203863328,-505.35,0.00024931,3]
[368551240,1751203863338,-490.0,0.00024931,3]
[368551241,1751203863348,-397.21,0.00024931,3]
[368551242,1751203863357,-490.0,0.00024931,3]
[368551243,1751203863367,-490.0,0.00024931,3]
[368551244,1751203863377,-151.0,0.00024931,7]
[368551245,1751203863387,-617.76,0.00024931,3]
[368551246,1751203863396,-151.0,0.00024931,7]
[368551247,1751203863406,-151.0,0.00024931,7]
[368551248,1751203863416,-729.35,0.00024931,3]
[368551249,1751203863425,-490.0,0.00024931,3]
[368551250,1751203863435,-618.47,0.00024931,3]
[368551251,1751203863444,-490.0,0.00024931,3]
[368551252,1751203863454,-2184.75,0.00024931,3]
[368551253,1751203863464,-490.0,0.00024931,3]
[368551254,1751203863475,-490.0,0.00024931,3]
[368551255,1751203863488,-519.99080662,0.00024931,3]
[368551256,1751203863498,-490.0,0.00024931,3]
[368551257,1751203863508,-490.0,0.00024931,3]
[368551258,1751203863518,-490.0,0.00024931,3]
[368551259,1751203863528,-490.0,0.00024931,3]
[368551260,1751203863538,-1476.54,0.00024931,3]
[368551261,1751203863547,-490.0,0.00024931,3]
[368551262,1751203863557,-630.18,0.00024931,3]
[368551263,1751203863568,-626.76,0.00024931,3]
[368551264,1751203863578,-579.54,0.00024931,3]
[368551265,1751203863588,-490.0,0.00024931,3]
[368551266,1751203863598,-490.0,0.00024931,3]
[368551267,1751203863607,-275.630003,0.00024931,7]
[368551268,1751203863618,-490.0,0.00024931,3]
[368551269,1751203863627,-490.0,0.00024931,3]
[368551270,1751203863636,-1797.84,0.00024931,3]
[368551271,1751203863646,-490.0,0.00024931,3]
[368551272,1751203863657,-2069.58,0.00024931,3]
[368551273,1751203863667,-490.0,0.00024931,3]
[368551274,1751203863677,-490.0,0.00024931,3]
[368551275,1751203863687,-490.0,0.00024931,3]
[368551276,1751203863697,-1653.44,0.00024931,3]
[368551277,1751203863706,-490.0,0.00024931,3]
[368551278,1751203863715,-1262.81,0.00024931,3]
[368551279,1751203863725,-634.63,0.00024931,3]
[368551280,1751203863734,-490.0,0.00024931,3]
[368551281,1751203863743,-354.52061501,0.00024931,3]
[368551282,1751203863753,-1420.08,0.00024931,3]
[368551283,1751203863763,-824.87,0.00024931,3]
[368551284,1751203863773,-1592.29,0.00024931,3]
[368551285,1751203863784,-495.86,0.00024931,3]
[368551286,1751203863794,-490.0,0.00024931,3]
[368551287,1751203863803,-490.0,0.00024931,3]
[368551288,1751203863813,-490.0,0.00024931,3]
[368551289,1751203863822,-529.72026219,0.00024931,3]
[368551290,1751203863832,-490.0,0.00024931,3]
[368551291,1751203863841,-1881.73,0.00024931,3]
[368551292,1751203863851,-490.0,0.00024931,3]
[368551293,1751203863861,-490.0,0.00024931,3]
[368551294,1751203863871,-151.0,0.00024931,7]
[368551295,1751203863880,-151.0,0.00024931,7]
[368551296,1751203863890,-151.0,0.00024931,7]
[368551297,1751203863899,-490.0,0.00024931,3]
[368551298,1751203863908,-490.0,0.00024931,3]
[368551299,1751203863919,-533.61,0.00024931,3]
[368551300,1751203863928,-683.68,0.00024931,3]
[368551301,1751203863938,-381.40603427,0.00024931,3]
[368551302,1751203863948,-216.20485391,0.00024931,3]
[368551303,1751203863958,-490.0,0.00024931,3]
[368551304,1751203863967,-752.05,0.00024931,3]
[368551305,1751203863976,-744.59,0.00024931,3]
[368551306,1751203863986,-490.0,0.00024931,3]
[368551307,1751203863995,-490.0,0.00024931,3]
[368551308,1751203864006,-630.4,0.00024931,3]
[368551309,1751203864015,-1074.61,0.00024931,3]
[368551310,1751203864025,-963.42,0.00024931,3]
[368551311,1751203864034,-490.0,0.00024931,3]
[368551312,1751203864043,-490.0,0.00024931,3]
[368551313,1751203864053,-490.0,0.00024931,3]
[368551314,1751203864062,-2158.78,0.00024931,3]
[368551315,1751203864072,-494.95,0.00024931,3]
[368551316,1751203864082,-855.13,0.00024931,3]
[368551317,1751203864091,-595.9704413,0.00024931,3]
[368551318,1751203864101,-490.0,0.00024931,3]
[368551319,1751203864111,-490.0,0.00024931,3]
[368551320,1751203864122,-1937.07,0.00024931,3]
[368551321,1751203864132,-258.11623734,0.00024931,3]
[368551322,1751203864142,-590.3,0.00024931,3]
[368551323,1751203864152,-490.0,0.00024931,3]
[368551324,1751203864162,-598.16,0.00024931,3]
[368551325,1751203864172,-509.78,0.00024931,3]
[368551326,1751203864181,-1123.37,0.00024931,3]
[368551327,1751203864191,-490.0,0.00024931,3]
[368551328,1751203864201,-490.0,0.00024931,3]
[368551329,1751203864210,-1322.1,0.00024931,3]
[368551330,1751203864220,-1426.8,0.00024931,3]
[368551331,1751203864230,-2156.83,0.00024931,3]
[368551332,1751203864239,-490.0,0.00024931,3]
[368551333,1751203864249,-490.0,0.00024931,3]
[368551334,1751203864259,-490.0,0.00024931,3]
[368551335,1751203864268,-490.0,0.00024931,3]
[368551336,1751203864278,-2352.62,0.00024931,3]
[368551337,1751203864288,-490.0,0.00024931,3]
[368551338,1751203864297,-490.0,0.00024931,3]
[368551339,1751203864307,-490.0,0.00024931,3]
[368551340,1751203864316,-490.0,0.00024931,3]
[368551341,1751203864326,-490.0,0.00024931,3]
[368551342,1751203864336,-522.47,0.00024931,3]
[368551343,1751203864345,-2011.96,0.00024931,3]
[368551344,1751203864355,-1636.29,0.00024931,3]
[368551345,1751203864364,-490.0,0.00024931,3]
[368551346,1751203864374,-2998.4,0.00024931,3]
[368551347,1751203864384,-490.0,0.00024931,3]
[368551348,1751203864393,-490.0,0.00024931,3]
[368551349,1751203864403,-1107.94,0.00024931,3]
[368551350,1751203864413,-680.22,0.00024931,3]
[368551351,1751203864422,-497.49213274,0.00024931,3]
[368551352,1751203864431,-298.688999,0.00024931,7]
[368551353,1751203864441,-1389.01,0.00024931,3]
[368551354,1751203864450,-490.0,0.00024931,3]
[368551355,1751203864460,-490.0,0.00024931,3]
[368551356,1751203864469,-490.0,0.00024931,3]
[368551357,1751203864478,-2020.5,0.00024931,3]
[368551358,1751203864494,-1427.55,0.00024931,3]
[368551359,1751203864511,-490.0,0.00024931,3]
[368551360,1751203864521,-490.0,0.00024931,3]
[368551361,1751203864530,-954.96,0.00024931,3]
[368551362,1751203864540,-634.52,0.00024931,3]
[368551363,1751203864550,-3084.17,0.00024931,3]
[368551364,1751203864559,-979.3,0.00024931,3]
[368551365,1751203864568,-490.0,0.00024931,3]
[368551366,1751203864578,-768.4,0.00024931,3]
[368551367,1751203864588,-663.01,0.00024931,3]
[368551368,1751203864597,-1743.26,0.00024931,3]
[368551369,1751203864607,-490.0,0.00024931,3]
[368551370,1751203864617,-490.0,0.00024931,3]
[368551371,1751203864627,-490.0,0.00024931,3]
[368551372,1751203864637,-1101.96,0.00024931,3]
[368551373,1751203864652,-490.0,0.00024931,3]
[368551374,1751203864661,-490.0,0.00024931,3]
[368551375,1751203864670,-2164.73,0.00024931,3]
[368551376,1751203864679,-1903.51,0.00024931,3]
[368551377,1751203864688,-490.0,0.00024931,3]
[368551378,1751203864698,-490.0,0.00024931,3]
[368551379,1751203864707,-889.09,0.00024931,3]
[368551380,1751203864717,-490.0,0.00024931,3]
[368551381,1751203864727,-490.0,0.00024931,3]
[368551382,1751203864736,-490.0,0.00024931,3]
[368551383,1751203864745,-490.0,0.00024931,3]
[368551384,1751203864755,-490.0,0.00024931,3]
[368551385,1751203864764,-490.0,0.00024931,3]
[368551386,1751203864774,-1409.82,0.00024931,3]
[368551387,1751203864783,-908.07,0.00024931,3]
[368551388,1751203864792,-930.39,0.00024931,3]
[368551389,1751203864801,-915.33,0.00024931,3]
[368551390,1751203864811,-490.0,0.00024931,3]
[368551391,1751203864820,-823.9,0.00024931,3]
[368551392,1751203864830,-300.0,0.00024931,3]
[368551393,1751203864839,-490.0,0.00024931,3]
[368551394,1751203864849,-522.8,0.00024931,3]
[368551395,1751203864859,-490.0,0.00024931,3]
[368551396,1751203864869,-490.0,0.00024931,3]
[368551397,1751203864879,-269.12256494,0.00024931,3]
[368551398,1751203864888,-490.0,0.00024931,3]
[368551399,1751203864898,-490.0,0.00024931,3]
[368551400,1751203864907,-557.07,0.00024931,3]
[368551401,1751203864916,-848.6,0.00024931,3]
[368551402,1751203864926,-1229.44,0.00024931,3]
[368551403,1751203864936,-962.48,0.00024931,3]
[368551404,1751203864946,-490.0,0.00024931,3]
[368551405,1751203864955,-490.0,0.00024931,3]
[368551406,1751203864965,-1621.37,0.00024931,3]
[368551407,1751203864975,-539.91,0.00024931,3]
[368551408,1751203864984,-1685.89,0.00024931,3]
[368551409,1751203864994,-1368.09,0.00024931,3]
[368551410,1751203865003,-730.54,0.00024931,3]
[368551411,1751203865013,-490.0,0.00024931,3]
[368551412,1751203865022,-2144.15,0.00024931,3]
[368551413,1751203865031,-495.99325293,0.00024931,3]
[368551414,1751203865041,-490.0,0.00024931,3]
[368551415,1751203865050,-2508.64,0.00024931,3]
[368551416,1751203865060,-522.17,0.00024931,3]
[368551417,1751203865070,-1070.17,0.00024931,3]
[368551418,1751203865079,-490.0,0.00024931,3]
[368551419,1751203865088,-490.0,0.00024931,3]
[368551420,1751203865097,-1531.78,0.00024931,3]
[368551421,1751203865107,-1285.52,0.00024931,3]
[368551422,1751203865116,-490.0,0.00024931,3]
[368551423,1751203865125,-490.0,0.00024931,3]
[368551424,1751203865135,-490.0,0.00024931,3]
[368551425,1751203865144,-490.0,0.00024931,3]
[368551426,1751203865154,-490.0,0.00024931,3]
[368551427,1751203865163,-550.61,0.00024931,3]
[368551428,1751203865173,-490.0,0.00024931,3]
[368551429,1751203865182,-811.08,0.00024931,3]
[368551430,1751203865193,-490.0,0.00024931,3]
[368551431,1751203865203,-966.08,0.00024931,3]
[368551432,1751203865212,-151.0,0.00024931,7]
[368551433,1751203865222,-151.0,0.00024931,7]
[368551434,1751203865232,-151.0,0.00024931,7]
[368551435,1751203865243,-1008.1,0.00024931,3]
[368551436,1751203865253,-490.0,0.00024931,3]
[368551437,1751203865264,-157.77,0.00024931,3]
[368551438,1751203865274,-490.0,0.00024931,3]
[368551439,1751203865283,-572.31,0.00024931,3]
[368551440,1751203865293,-490.0,0.00024931,3]
[368551441,1751203865302,-1264.43,0.00024931,3]
[368551442,1751203865312,-1033.9,0.00024931,3]
[368551443,1751203865321,-3071.83,0.00024931,3]
[368551444,1751203865331,-2583.16,0.00024931,3]
[368551445,1751203865340,-490.0,0.00024931,3]
[368551446,1751203865351,-490.0,0.00024931,3]
[368551447,1751203865360,-490.0,0.00024931,3]
[368551448,1751203865370,-1504.09,0.00024931,3]
[368551449,1751203865380,-914.73,0.00024931,3]
[368551450,1751203865390,-490.0,0.00024931,3]
[368551451,1751203865400,-652.82,0.00024931,3]
[368551452,1751203865410,-490.0,0.00024931,3]
[368551453,1751203865419,-1513.99,0.00024931,3]
[368551454,1751203865429,-166.4112,0.00024931,7]
[368551455,1751203865438,-490.0,0.00024931,3]
[368551456,1751203865448,-1310.78,0.00024931,3]
[368551457,1751203865457,-897.05,0.00024931,3]
[368551458,1751203865467,-1314.37,0.00024931,3]
[368551459,1751203865476,-490.0,0.00024931,3]
[368551460,1751203865486,-151.0,0.00024931,7]
[368551461,1751203865498,-151.0,0.00024931,7]
[368551462,1751203865508,-151.0,0.00024931,7]
[368551463,1751203865518,-2881.8,0.00024931,3]
[368551464,1751203865528,-1642.98,0.00024931,3]
[368551465,1751203865539,-490.0,0.00024931,3]
[368551466,1751203865551,-647.9,0.00024931,3]
[368551467,1751203865562,-490.0,0.00024931,3]
[368551468,1751203865576,-490.0,0.00024931,3]
[368551469,1751203865588,-490.0,0.00024931,3]
[368551470,1751203865599,-490.0,0.00024931,3]
[368551471,1751203865611,-1736.09,0.00024931,3]
[368551472,1751203865626,-531.14,0.00024931,3]
[368551473,1751203865641,-490.0,0.00024931,3]
[368551474,1751203865652,-490.0,0.00024931,3]
[368551475,1751203865663,-497.90322694,0.00024931,3]
[368551476,1751203865675,-1201.0,0.00024931,3]
[368551477,1751203865686,-490.0,0.00024931,3]
[368551478,1751203865697,-548.84,0.00024931,3]
[368551479,1751203865709,-2266.51,0.00024931,3]
[368551480,1751203865720,-490.0,0.00024931,3]
[368551481,1751203865731,-490.0,0.00024931,3]
[368551482,1751203865743,-725.93,0.00024931,3]
[368551483,1751203865754,-1066.88,0.00024931,3]
[368551484,1751203865766,-1444.51,0.00024931,3]
[368551485,1751203865777,-2744.51,0.00024931,3]
[368551486,1751203865788,-3171.5,0.00024931,3]
[368551487,1751203865800,-490.0,0.00024931,3]
[368551488,1751203865810,-490.0,0.00024931,3]
[368551489,1751203865821,-490.0,0.00024931,3]
[368551490,1751203865832,-490.0,0.00024931,3]
[368551491,1751203865843,-490.0,0.00024931,3]
[368551492,1751203865854,-490.0,0.00024931,3]
[368551493,1751203865868,-490.0,0.00024931,3]
[368551494,1751203865879,-578.81,0.00024931,3]
[368551495,1751203865890,-490.0,0.00024931,3]
[368551496,1751203865901,-1223.33,0.00024931,3]
[368551497,1751203865911,-541.04,0.00024931,3]
[368551498,1751203865922,-1327.65,0.00024931,3]
[368551499,1751203865933,-490.0,0.00024931,3]
[368551500,1751203865943,-490.0,0.00024931,3]
[368551501,1751203865954,-404.61331358,0.00024931,3]
[368551502,1751203865966,-490.0,0.00024931,3]
[368551503,1751203865976,-490.0,0.00024931,3]
[368551504,1751203865986,-490.0,0.00024931,3]
[368551505,1751203865996,-2160.88,0.00024931,3]
[368551506,1751203866007,-490.0,0.00024931,3]
[368551507,1751203866016,-735.1,0.00024931,3]
[368551508,1751203866026,-490.0,0.00024931,3]
[368551509,1751203866036,-625.55,0.00024931,3]
[368551510,1751203866046,-490.0,0.00024931,3]
[368551511,1751203866057,-490.0,0.00024931,3]
[368551512,1751203866067,-906.18,0.00024931,3]